Workbook

Sheet MSU
B1: Antti Rinnevuori | E1: 28.12.1987 Ylöjärvi
B2: SUPERPESIS | E2: Runkosarja | I2: Kärkilyönnit (KL), pesänvälit | P2: Runkosarja TOP-30 | U2: Alempi loppusarja | AB2: Ylempi loppusarja TOP-10 | AG2: Play off, voitot, voittoprosentti | AL2: Arvo-ottelut | AO2: Mitalit
B3: Vuosi | C3: Sija | D3: Seura | E3: OTT | F3: KUN | G3: LÖI | H3: TOI | I3: KL | J3: 0 > 1 | K3: 1 > 2 | L3: 2 > 3 | M3: 3 > k | N3: KL-% | P3: LÖI | Q3: TOI | R3: L+T | S3: KL | U3: OTT | V3: KUN | W3: LÖI | X3: TOI | Y3: KL | Z3: KL-% | AB3: LÖI | AC3: TOI | AD3: L+T | AE3: KL | AG3: Puolivälierät | AH3: Välierät | AI3: Pronssi | AJ3: Finaalit | AL3: IL | AM3: LL | AN3: hSM | AO3: K | AP3: H | AQ3: P
B4: 2005 | C4: 4. | D4: SoJy 2 | F4: suomensarja | AA4: 0
B5: 2006 | C5: 9. | D5: SoJy 2 | F5: suomensarja | AA5: 0
B6: 2006 | C6: 15. | D6: KPK | F6: ykköspesis
B7: 2006 | C7: 1. | D7: SoJy | E7: 15 | F7: 0 | G7: 1 | H7: 7 | I7: 18 | J7: 17 | K7: 0 | L7: 0 | M7: =PRODUCT(F7+G7) -> 1 | N7: 51.4 % | O7: =PRODUCT(I7/N7) -> 35.01945525 | AA7: 0 | AG7: Jatkosarja 1. | AO7: 1
B8: 2007 | C8: 1. | D8: KaMa | F8: ykköspesis | O8: 0 | U8: 6 | V8: 0 | W8: 1 | X8: 3 | Y8: 15 | Z8: 50.0 % | AA8: 0
B9: 2008 | C9: 8. | D9: HP-K | F9: ykköspesis | O9: 0 | AA9: 66
B10: 2008 | C10: 2. | D10: SoJy | E10: 2 | F10: 1 | G10: 0 | H10: 2 | I10: 4 | J10: 1 | K10: 1 | L10: 1 | M10: =PRODUCT(F10+G10) -> 1 | N10: 50.0 % | O10: =PRODUCT(I10/N10) -> 8 | AP10: 1
B11: 2009 | O11: 0
B12: 2010 | C12: 10. | D12: IPV | F12: ykköspesis | O12: 0
B13: 2011 | C13: 5. | D13: PuPe | F13: ykköspesis | O13: 0
B14: 2012 | C14: 5. | D14: PuPe | F14: ykköspesis | O14: 0
B15: 2013 | C15: 7. | D15: KaMa 2 | F15: suomensarja | O15: 0 | AA15: 0
B16: 2013 | C16: 10. | D16: KaMa | E16: 12 | F16: 0 | G16: 1 | H16: 3 | I16: 24 | J16: 21 | K16: 1 | L16: 1 | M16: 1 | N16: 48.0 % | O16: =PRODUCT(I16/N16) -> 50 | AA16: 0
B17: 2014 | C17: 11. | D17: KaMa | E17: 30 | F17: 0 | G17: 4 | H17: 13 | I17: 115 | J17: 96 | K17: 10 | L17: 5 | M17: 4 | N17: 61.8 % | O17: =PRODUCT(I17/N17) -> 186.0841424 | U17: 5 | V17: 0 | W17: 2 | X17: 1 | Y17: 12 | Z17: 48.0 % | AA17: 0
B18: 2015 | C18: 7. | D18: PuPe | F18: ykköspesis | AA18: 40
B19: 2016 | C19: 4. | D19: PuPe | F19: ykköspesis | AA19: 74
B20: 2017 | C20: 6. | D20: PuPe | F20: ykköspesis | O20: 0 | AA20: 85
B21: 2018 | C21: 4. | D21: PuPe | F21: ykköspesis | O21: 0 | AA21: 85
B22: 2019 | C22: 13. | D22: SiiPe | E22: 30 | F22: 1 | G22: 0 | H22: 16 | I22: 130 | J22: 76 | K22: 31 | L22: 22 | M22: 1 | N22: 56.8 % | O22: 229 | U22: 8 | V22: 1 | W22: 0 | X22: 9 | Y22: 28 | Z22: 45.2 % | AA22: 62
B23: Yhteensä | E23: =SUM(E4:E22) -> 89 | F23: 2 | G23: 6 | H23: 41 | I23: 291 | J23: 211 | K23: 43 | L23: 29 | M23: 8 | N23: =PRODUCT(I23/O23) -> 57.3 % | O23: =SUM(O7:O22) -> 508.1035976 | P23: 0-0-0 | Q23: 0-0-0 | R23: 0-0-0 | S23: 0-0-0 | U23: =SUM(U4:U22) -> 19 | V23: 1 | W23: 3 | X23: 13 | Y23: 55 | Z23: =PRODUCT(N30) -> 47.0 % | AA23: =SUM(AA3:AA22) -> 412 | AB23: 0-0-0 | AC23: 0-0-0 | AD23: 0-0-0 | AE23: 0-0-0 | AG23: 0/0 | AH23: 0/0 | AI23: 0/0 | AJ23: 0/0 | AL23: =SUM(AL4:AL22) -> 0 | AM23: 0 | AN23: 0 | AO23: 1 | AP23: 1 | AQ23: 0
AG24: 0.0 % | AH24: 0.0 % | AI24: 0.0 % | AJ24: 0.0 %
B25: Pesispörssi | D25: =SUM(F23:H23)+((I23-F23-G23)/3)+(E23/3)+(AL23*25)+(AM23*25)+(AN23*10)+(AO23*25)+(AP23*20)+(AQ23*15)-20 -> 198.0
B27: URA SUPERISSA | E27: OTT | F27: KUN | G27: LÖI | H27: TOI | I27: KL | K27: ka/L | L27: ka/T | M27: ka/KL | N27: KL-% | P27: ENSIMMÄISET RUNKOSARJASSA | AG27: ENSIMMÄISET PUDOTUSPELEISSÄ | AL27: YLEISÖ
B28: Runkosarja | E28: =PRODUCT(E23) -> 89 | F28: =PRODUCT(F23) -> 2 | G28: =PRODUCT(G23) -> 6 | H28: =PRODUCT(H23) -> 41 | I28: =PRODUCT(I23) -> 291 | K28: =PRODUCT((F28+G28)/E28) -> 0.09 | L28: =PRODUCT(H28/E28) -> 0.46 | M28: =PRODUCT(I28/E28) -> 3.27 | N28: =PRODUCT(N23) -> 57.3 % | O28: =PRODUCT(O23) -> 508.1035976 | P28: Ottelu | R28: 14.05. 2006 Tahko - SoJy 1-2 (3-4, 7-6, 1-1, 1-2) | AA28: 1. ottelu | AD28: 18 v 4 kk 16 pv | AG28: Ottelu | AH28: 1. 17.08. 2006 Tahko - SoJy 0-2 | AL28: 1457 | AN28: 18 v 1 7 kk 20 pv
B29: Ylempi loppusarja | E29: 4 | F29: 0 | G29: 0 | H29: 2 | I29: 7 | K29: =PRODUCT((F29+G29)/E29) -> 0.00 | L29: =PRODUCT(H29/E29) -> 0.5 | M29: =PRODUCT(I29/E29) -> 1.75 | N29: =PRODUCT(I29/O29) -> 58.3 % | O29: 12 | P29: Lyöty | R29: 20.06. 2006 PattU - SoJy 1-2 (4-2, 1-5, 0-0, 2-3) | AA29: 12. ottelu | AD29: 18 v 5 kk 22 pv | AG29: Lyöty
B30: Alempi loppusarja | E30: =PRODUCT(U23) -> 19 | F30: =PRODUCT(V23) -> 1 | G30: =PRODUCT(W23) -> 3 | H30: =PRODUCT(X23) -> 13 | I30: =PRODUCT(Y23) -> 55 | K30: =PRODUCT((F30+G30)/E30) -> 0.21 | L30: =PRODUCT(H30/E30) -> 0.68 | M30: =PRODUCT(I30/E30) -> 2.89 | N30: =PRODUCT(I30/O30) -> 47.0 % | O30: 117 | P30: Tuotu | R30: 30.05. 2006 SoJy - PattU 1-2 (3-4, 3-2, 0-0, 1-2) | AA30: 6. ottelu | AD30: 18 v 5 kk 2 pv | AG30: Tuotu | AH30: 1. 17.08. 2006 Tahko - SoJy 0-2 | AL30: 1457 | AN30: 18 v 1 7 kk 20 pv
B31: KAIKKI | E31: =SUM(E28:E30) -> 112 | F31: =SUM(F28:F30) -> 3 | G31: =SUM(G28:G30) -> 9 | H31: =SUM(H28:H30) -> 56 | I31: =SUM(I28:I30) -> 353 | K31: =PRODUCT((F31+G31)/E31) -> 0.11 | L31: =PRODUCT(H31/E31) -> 0.50 | M31: =PRODUCT(I31/E31) -> 3.15 | N31: =PRODUCT(I31/O31) -> 55.4 % | O31: =SUM(O28:O30) -> 637.1035976 | P31: Kunnari | R31: 15.07. 2008 JoMa - SoJy 0-2 (1-2, 1-4) | AA31: 11. ottelu | AD31: 20 v 6 kk 17 pv | AG31: Kunnari
B33: Seurat | D33: Ylöjärven Pallo (1960), kasvattajaseura | K33: KPK = Kajaanin Pallokerho (1933) | R33: HP-K = Haapajärven Pesä-Kiilat (1990) | Z33: IPV = Imatran Pallo-Veikto (1955) | AG33: SiiPe = Siilinjärven Pesis (1987)
D34: SoJy = Sotkamon Jymy (1909) | K34: KaMa = Kankaanpään Maila (1958) | R34: SoJy = Sotkamon Jymy (1909) | Z34: PuPe = Puijon Pesis (2009)

Sheet MYP, MSS
B1: Antti Rinnevuori | E1: 28.12.1987 Ylöjärvi
B2: YKKÖSPESIS | E2: Runkosarja | L2: Runkosarja TOP-10 | Q2: Jatkosarjat | X2: SUOMENSARJA | AA2: Runkosarja | AH2: Runkosarja TOP-10 | AM2: Jatkosarjat
B3: Vuosi | C3: Sija | D3: Seura | E3: OTT | F3: KUN | G3: LÖI | H3: TOI | I3: KL | J3: KL-% | L3: LÖI | M3: TOI | N3: L+T | O3: KL | Q3: OTT | R3: KUN | S3: LÖI | T3: TOI | U3: KL | V3: KL-% | X3: Vuosi | Y3: Sija | Z3: Seura | AA3: OTT | AB3: KUN | AC3: LÖI | AD3: TOI | AE3: KL | AF3: KL-% | AH3: LÖI | AI3: TOI | AJ3: L+T | AK3: KL | AM3: OTT | AN3: KUN | AO3: LÖI | AP3: TOI | AQ3: KL | AR3: KL-%
X4: 2005 | Y4: 4. | Z4: SoJy 2 | AA4: 17 | AB4: 0 | AC4: 2 | AD4: 19 | AE4: 71 | AF4: 65.1 % | AG4: 109
B5: 2006 | C5: 15. | D5: KPK | E5: 11 | F5: 0 | G5: 0 | H5: 10 | I5: 56 | J5: 70.0 % | K5: 80 | X5: 2006 | Y5: 9. | Z5: SoJy 2 | AA5: 3 | AB5: 0 | AC5: 0 | AD5: 3 | AE5: 16 | AF5: 64.0 % | AG5: 25
B6: 2007 | C6: 1. | D6: KaMa | E6: 20 | F6: 0 | G6: 2 | H6: 22 | I6: 55 | J6: 43.3 % | K6: 127
B7: 2008 | C7: 8. | D7: HP-K | E7: 17 | F7: 0 | G7: 2 | H7: 18 | I7: 70 | J7: 57.9 % | K7: 121
B8: 2010 | C8: 10. | D8: IPV | E8: 21 | F8: 0 | G8: 0 | H8: 24 | I8: 96 | J8: 63.2 % | K8: 152 | Q8: 2 | R8: 0 | S8: 0 | T8: 4 | U8: 6 | V8: 46.2 % | W8: 13
B9: 2011 | C9: 5. | D9: PuPe | E9: 22 | F9: 0 | G9: 1 | H9: 19 | I9: 101 | J9: 64.3 % | K9: 157 | Q9: 2 | R9: 0 | S9: 0 | T9: 2 | U9: 11 | V9: 57.9 % | W9: 19
B10: 2012 | C10: 5. | D10: PuPe | E10: 22 | F10: 0 | G10: 0 | H10: 36 | I10: 101 | J10: 70.1 % | K10: 144 | M10: 3.
X11: 2013 | Y11: 7. | Z11: KaMa 2 | AA11: 1 | AB11: 0 | AC11: 0 | AD11: 1 | AE11: 3 | AF11: 50.0 % | AG11: 6
B13: 2015 | C13: 7. | D13: PuPe | E13: 23 | F13: 0 | G13: 2 | H13: 11 | I13: 87 | J13: 59.6 % | K13: 146
B14: 2016 | C14: 4. | D14: PuPe | E14: 23 | F14: 1 | G14: 3 | H14: 19 | I14: 122 | J14: 63.9 % | K14: 191 | O14: 9. | Q14: 4 | R14: 0 | S14: 0 | T14: 4 | U14: 20 | V14: 62.5 % | W14: 32
B15: 2017 | C15: 6. | D15: PuPe | E15: 24 | F15: 0 | G15: 3 | H15: 18 | I15: 104 | J15: 63.8 % | K15: 163
B16: 2018 | C16: 4. | D16: PuPe | E16: 22 | F16: 0 | G16: 2 | H16: 34 | I16: 120 | J16: 69.8 % | K16: 172 | O16: 8. | Q16: 4 | R16: 0 | S16: 0 | T16: 6 | U16: 13 | V16: 46.4 % | W16: 28
B17: YHTEENSÄ | E17: =SUM(E4:E16) -> 205 | F17: =SUM(F4:F16) -> 1 | G17: =SUM(G4:G16) -> 15 | H17: =SUM(H4:H16) -> 211 | I17: =SUM(I4:I16) -> 912 | J17: =PRODUCT(I17/K17) -> 62.8 % | K17: =SUM(K4:K16) -> 1453 | Q17: =SUM(Q4:Q16) -> 12 | R17: =SUM(R4:R16) -> 0 | S17: =SUM(S4:S16) -> 0 | T17: =SUM(T4:T16) -> 16 | U17: =SUM(U4:U16) -> 50 | V17: =PRODUCT(U17/W17) -> 54.3 % | W17: =SUM(W4:W16) -> 92 | X17: YHTEENSÄ | AA17: =SUM(AA4:AA16) -> 21 | AB17: =SUM(AB4:AB16) -> 0 | AC17: =SUM(AC4:AC16) -> 2 | AD17: =SUM(AD4:AD16) -> 23 | AE17: =SUM(AE4:AE16) -> 90 | AF17: =PRODUCT(AE17/AG17) -> 64.3 % | AG17: =SUM(AG4:AG16) -> 140 | AM17: =SUM(AM4:AM16) -> 0 | AN17: =SUM(AN4:AN16) -> 0 | AO17: =SUM(AO4:AO16) -> 0 | AP17: =SUM(AP4:AP16) -> 0 | AQ17: =SUM(AQ4:AQ16) -> 0 | AR17: 0.0 % | AS17: =SUM(AS4:AS16) -> 0
B19: KAIKKI OTTELUT | E19: OTT | F19: KUN | G19: LÖI | H19: TOI | I19: KL | J19: KL-% | L19: ka/L | M19: ka/T | N19: ka/l+t | O19: ka/kl | R19: Seurat | T19: Ylöjärven Pallo (1960), kasvattajaseura
B20: SUPERPESIS | E20: 112 | F20: 3 | G20: 9 | H20: 56 | I20: 353 | J20: 55.4 % | K20: =PRODUCT(I20/J20) -> 637.1841155 | L20: =PRODUCT((F20+G20)/E20) -> 0.11 | M20: =PRODUCT(H20/E20) -> 0.50 | N20: =PRODUCT((F20+G20+H20)/E20) -> 0.61 | O20: =PRODUCT(I20/E20) -> 3.15 | T20: SoJy = Sotkamon Jymy (1909)
B21: YKKÖSPESIS | E21: =PRODUCT(E17+Q17) -> 217 | F21: =PRODUCT(F17+R17) -> 1 | G21: =PRODUCT(G17+S17) -> 15 | H21: =PRODUCT(H17+T17) -> 227 | I21: =PRODUCT(I17+U17) -> 962 | J21: =PRODUCT(I21/K21) -> 62.3 % | K21: =PRODUCT(K17+W17) -> 1545 | L21: =PRODUCT((F21+G21)/E21) -> 0.07 | M21: =PRODUCT(H21/E21) -> 1.05 | N21: =PRODUCT((F21+G21+H21)/E21) -> 1.12 | O21: =PRODUCT(I21/E21) -> 4.43 | T21: KPK = Kajaanin Pallokerho (1933)
B22: SUOMENSARJA | E22: =PRODUCT(AA17+AM17) -> 21 | F22: =PRODUCT(AB17+AN17) -> 0 | G22: =PRODUCT(AC17+AO17) -> 2 | H22: =PRODUCT(AD17+AP17) -> 23 | I22: =PRODUCT(AE17+AQ17) -> 90 | J22: =PRODUCT(I22/K22) -> 64.3 % | K22: =PRODUCT(AG17+AS17) -> 140 | L22: =PRODUCT((F22+G22)/E22) -> 0.10 | M22: =PRODUCT(H22/E22) -> 1.10 | N22: =PRODUCT((F22+G22+H22)/E22) -> 1.19 | O22: =PRODUCT(I22/E22) -> 4.29 | T22: KaMa = Kankaanpään Maila (1958)
B23: YHTEENSÄ | E23: =SUM(E20:E22) -> 350 | F23: =SUM(F20:F22) -> 4 | G23: 26 | H23: 306 | I23: 1405 | J23: =PRODUCT(I23/K23) -> 60.5 % | K23: =SUM(K20:K22) -> 2322.184116 | L23: =PRODUCT((F23+G23)/E23) -> 0.09 | M23: =PRODUCT(H23/E23) -> 0.87 | N23: =PRODUCT((F23+G23+H23)/E23) -> 0.96 | O23: =PRODUCT(I23/E23) -> 4.01 | T23: HP-K = Haapajärven Pesä-Kiilat (1990)
T24: SoJy = Sotkamon Jymy (1909)
T25: IPV = Imatran Pallo-Veikto (1955)
T26: PuPe = Puijon Pesis (2009)

Sheet Arvo-ottelut
B1: ITÄ - LÄNSI - KORTTI
B2: Antti Rinnevuori | C2: 28.12.1987 Ylöjärvi
A3: 1 | B3: B - POJAT | C3: Itä - Länsi, tulos | D3: Joukkue | E3: Seura | G3: V | H3: T | I3: H | J3: Up. | K3: Lj. | L3: Palk. | M3: O | N3: K | O3: L | P3: T | Q3: KL | R3: 1 | S3: 2 | T3: 3 | U3: k | V3: KL-% | W3: Pelinjohtaja | X3: Yleisöä
A4: 2 | B4: 22.07. 2005 Oulu | C4: 0-1 (4-4, 0-1) | D4: Itä | E4: SoJy | I4: 1 | J4: 3p | K4: 9 | M4: 1 | Q4: 1/3 | R4: 1/2 | S4: 0/1 | V4: 33.3 % | W4: Janne Huotari | X4: 1318
A6: 5 | B6: A - POJAT | C6: Itä - Länsi, tulos | D6: Joukkue | E6: Seura | G6: V | H6: T | I6: H | J6: Up. | K6: Lj. | L6: Palk. | M6: O | N6: K | O6: L | P6: T | Q6: KL | R6: 1 | S6: 2 | T6: 3 | U6: k | V6: KL-% | W6: Pelinjohtaja | X6: Yleisöä
A7: 7 | B7: 30.06. 2006 Kitee | C7: 0-2 (0-1, 0-1) | D7: Itä | E7: KPK | I7: 1 | J7: 2k | K7: 6 | M7: 1 | Q7: 1/3 | R7: 1/2 | S7: 0/1 | V7: 33.3 % | W7: Mika Sirviö | X7: 2125
B8: 29.06. 2007 Kouvola | C8: 2-0 (6-5, 4-1) | D8: Länsi | E8: KaMa | I8: 1 | J8: 2k | K8: 1 | M8: 1 | P8: 1 | Q8: 3/5 | R8: 1/2 | S8: 1/2 | T8: 1/1 | V8: 60.0 % | W8: Sami-Petteri Kivimäki | X8: 2318
B9: Yhteensä | I9: 2 | M9: =SUM(M7:M8) -> 2 | P9: 1 | Q9: 4/8 | R9: 2/4 | S9: 1/3 | T9: 1/1 | V9: 50.0 %
W49: 10
W50: 18
W51: =PRODUCT(W49/W50) -> 0.556

Sheet Kärkilyönnit
B1: KÄRKILYÖNNIT RUNKOSARJASSA | V1: VUOSITTAISET SIJOITUKSET TOP - 30
G2: 0 > 1 | J2: 1 > 2 | M2: 2 > 3 | P2: 3 > k | S2: Yhteensä
B3: Vuosi | C3: Sija | D3: Seura | E3: OTT | F3: KL | G3: YHT | H3: % | I3: KL | J3: YHT | K3: % | L3: KL | M3: YHT | N3: % | O3: KL | P3: YHT | Q3: % | R3: KL | S3: YHT | T3: % | V3: Vuosi | W3: Sija | X3: Seura | Y3: 0 > 1 | Z3: 1 > 2 | AA3: 2 > 3 | AB3: 3 > k | AC3: KL
B4: 2006 | C4: 1. | D4: SoJy | E4: 15 | F4: 17 | G4: 34 | H4: 50.0 % | I4: 0 | J4: 0 | K4: 0.0 % | L4: 0 | M4: 0 | N4: 0.0 % | O4: 1 | P4: 1 | Q4: 100.0 % | R4: 18 | S4: 35 | T4: 51.4 % | V4: 2006 | W4: 1. | X4: SoJy
B5: 2007 | V5: 2007
B6: 2008 | C6: 3. | D6: SoJy | E6: 2 | F6: 1 | G6: 5 | H6: 20.0 % | I6: 1 | J6: 1 | K6: 100.0 % | L6: 1 | M6: 1 | N6: 100.0 % | O6: 1 | P6: 1 | Q6: 100.0 % | R6: 4 | S6: 8 | T6: 50.0 % | V6: 2008 | W6: 3. | X6: SoJy
B7: **** | V7: ****
B8: 2013 | C8: 10. | D8: KaMa | E8: 12 | F8: 21 | G8: 38 | H8: 55.3 % | I8: 1 | J8: 7 | K8: 14.3 % | L8: 1 | M8: 2 | N8: 50.0 % | O8: 1 | P8: 3 | Q8: 33.3 % | R8: 24 | S8: 50 | T8: 48.0 % | V8: 2013 | W8: 10. | X8: KaMa
B9: 2014 | C9: 10. | D9: KaMa | E9: 30 | F9: 96 | G9: 150 | H9: 64.0 % | I9: 10 | J9: 22 | K9: 45.5 % | L9: 5 | M9: 8 | N9: 62.5 % | O9: 4 | P9: 6 | Q9: 66.7 % | R9: 115 | S9: 186 | T9: 61.8 % | V9: 2014 | W9: 10. | X9: KaMa | Y9: 6.
B10: **** | V10: ****
B11: 2019 | C11: 13. | D11: SiiPe | E11: 30 | F11: 76 | G11: 127 | H11: 59.8 % | I11: 31 | J11: 62 | K11: 50.0 % | L11: 22 | M11: 35 | N11: 62.9 % | O11: 1 | P11: 5 | Q11: 20.0 % | R11: 130 | S11: 229 | T11: 56.8 % | V11: 2019 | W11: 13. | X11: SiiPe | Y11: 13.
B12: Yhteensä | E12: =SUM(E4:E11) -> 89 | F12: =SUM(F4:F11) -> 211 | G12: =SUM(G4:G11) -> 354 | H12: =PRODUCT(F12/G12) -> 59.6 % | I12: =SUM(I4:I11) -> 43 | J12: =SUM(J4:J11) -> 92 | K12: =PRODUCT(I12/J12) -> 46.7 % | L12: =SUM(L4:L11) -> 29 | M12: =SUM(M4:M11) -> 46 | N12: =PRODUCT(L12/M12) -> 63.0 % | O12: =SUM(O4:O11) -> 8 | P12: =SUM(P4:P11) -> 16 | Q12: =PRODUCT(O12/P12) -> 50.0 % | R12: =SUM(R4:R11) -> 291 | S12: =SUM(S4:S11) -> 508 | T12: =PRODUCT(R12/S12) -> 57.3 %
B14: KÄRKILYÖNNIT YLEMMISSÄ PUDOTUSPELEISSÄ | V14: VUOSITTAISET SIJOITUKSET TOP - 30
G15: 0 > 1 | J15: 1 > 2 | M15: 2 > 3 | P15: 3 > k | S15: Yhteensä
B16: Vuosi | C16: Sija | D16: Seura | E16: OTT | F16: KL | G16: YHT | H16: % | I16: KL | J16: YHT | K16: % | L16: KL | M16: YHT | N16: % | O16: KL | P16: YHT | Q16: % | R16: KL | S16: YHT | T16: % | V16: Vuosi | W16: Sija | X16: Seura | Y16: 0 > 1 | Z16: 1 > 2 | AA16: 2 > 3 | AB16: 3 > k | AC16: KL
B17: 2006 | C17: 1. | D17: SoJy | E17: 3 | F17: 7 | G17: 10 | H17: 70.0 % | I17: 0 | J17: 0 | K17: 0.0 % | L17: 0 | M17: 0 | N17: 0.0 % | O17: 0 | P17: 2 | Q17: 0.0 % | R17: 7 | S17: 12 | T17: 58.3 % | V17: 2006 | W17: 1. | X17: SoJy
B18: Yhteensä | E18: =SUM(E15:E17) -> 3 | F18: =SUM(F17:F17) -> 7 | G18: =SUM(G17:G17) -> 10 | H18: =PRODUCT(F18/G18) -> 70.0 % | I18: =SUM(I17:I17) -> 0 | J18: =SUM(J17:J17) -> 0 | K18: 0.0 % | L18: =SUM(L17:L17) -> 0 | M18: =SUM(M17:M17) -> 0 | N18: 0.0 % | O18: =SUM(O17:O17) -> 0 | P18: =SUM(P17:P17) -> 2 | Q18: =PRODUCT(O18/P18) -> 0.0 % | R18: =SUM(R17:R17) -> 7 | S18: =SUM(S17:S17) -> 12 | T18: =PRODUCT(R18/S18) -> 58.3 %
B20: KÄRKILYÖNNIT
G21: 0 > 1 | J21: 1 > 2 | M21: 2 > 3 | P21: 3 > k | S21: Yhteensä
E22: OTT | F22: KL | G22: YHT | H22: % | I22: KL | J22: YHT | K22: % | L22: KL | M22: YHT | N22: % | O22: KL | P22: YHT | Q22: % | R22: KL | S22: YHT | T22: %
B23: RUNKOSARJA | E23: =PRODUCT(E12) -> 89 | F23: =PRODUCT(F12) -> 211 | G23: =PRODUCT(G12) -> 354 | H23: =PRODUCT(H12) -> 59.6 % | I23: =PRODUCT(I12) -> 43 | J23: =PRODUCT(J12) -> 92 | K23: =PRODUCT(K12) -> 46.7 % | L23: =PRODUCT(L12) -> 29 | M23: =PRODUCT(M12) -> 46 | N23: =PRODUCT(N12) -> 63.0 % | O23: =PRODUCT(O12) -> 8 | P23: =PRODUCT(P12) -> 16 | Q23: =PRODUCT(Q12) -> 50.0 % | R23: =PRODUCT(R12) -> 291 | S23: =PRODUCT(S12) -> 508 | T23: =PRODUCT(T12) -> 57.3 %
B24: PLAY OFF | E24: =PRODUCT(E18) -> 3 | F24: =PRODUCT(F18) -> 7 | G24: 10 | H24: 70.0 % | I24: 0 | J24: 0 | K24: 0.0 % | L24: 0 | M24: 0 | N24: 0.0 % | O24: 0 | P24: 2 | Q24: 0.0 % | R24: 7 | S24: 12 | T24: 58.3 %
